bitfinex/quotes_ETHUSD_20250115
["timestamp","ask_amount","ask_price","bid_price","bid_amount"]
[1736958241228,2.96841,3368.8,3368.7,0.216]
[1736958241430,0.02980968,3369.0,3367.7,37.96932]
[1736958241617,3.78649,3368.6,3367.8,0.216]
[1736958241935,0.02980968,3368.5,3367.3,0.7972]
[1736958242095,2.96897,3368.2,3367.8,0.216]
[1736958242430,2.96897,3368.2,3367.1,2.96987]
[1736958242431,2.96912,3368.0,3367.9,0.216]
[1736958242632,3.78702,3368.0,3367.9,0.216]
[1736958242930,3.78702,3368.0,3365.4,0.14966079]
[1736958242931,2.97044,3366.6,3365.6,0.7972]
[1736958243091,0.02980968,3366.5,3366.2,0.216]
[1736958243296,2.97044,3366.5,3366.2,0.216]
[1736958243528,2.97027,3366.7,3366.2,0.216]
[1736958243723,2.97036,3366.6,3365.7,35.0]
[1736958243958,0.378826,3366.6,3365.8,0.216]
[1736958244091,0.7817,3366.5,3365.8,0.216]
[1736958244298,3.75222,3366.5,3365.8,0.216]
[1736958244528,0.7817,3366.5,3365.8,3.18705]
[1736958244893,0.7817,3366.5,3365.8,0.216]
[1736958245131,0.7817,3366.5,3365.8,3.18704]
[1736958245304,0.7817,3366.5,3365.8,0.216]
[1736958245505,0.7817,3366.5,3365.7,35.0]
[1736958245506,1.156888,3366.5,3365.7,35.0]
[1736958245717,2.97062,3366.3,3365.8,0.216]
[1736958246225,2.9703,3366.7,3365.8,0.216]
[1736958246226,3.75245,3366.2,3365.8,0.216]
[1736958247019,2.97091,3366.0,3365.6,0.216]
[1736958247194,0.02980968,3366.1,3365.6,0.216]
[1736958247395,0.7817,3366.2,3365.9,2.97091]
[1736958247595,2.97004,3367.0,3366.0,35.513091]
[1736958247795,2.97016,3366.9,3366.1,0.216]
[1736958247995,0.02980968,3366.8,3366.1,0.216]
[1736958248231,0.7817,3366.6,3366.1,0.216]
[1736958248533,0.02980968,3366.8,3366.0,35.0]
[1736958248534,2.97079,3366.1,3366.0,35.0]
[1736958248730,3.75266,3366.0,3365.8,0.216]
[1736958249033,1.48681865,3366.0,3364.8,0.46565811]
[1736958249232,1.45700897,3366.0,3364.9,0.216]
[1736958249398,3.7526,3366.0,3364.9,3.18779]
[1736958249934,0.02980968,3365.9,3364.9,3.18779]
[1736958250135,0.7817,3366.0,3364.9,0.216]
[1736958250693,0.7817,3366.0,3365.1,2.97165]
[1736958250939,0.7817,3366.0,3364.9,0.216]
[1736958251143,0.7817,3366.0,3365.2,2.97155]
[1736958251361,0.7817,3366.0,3364.9,0.216]
[1736958251553,0.7817,3366.0,3365.3,35.0]
[1736958252401,0.02980968,3365.9,3365.3,35.0]
[1736958252944,3.75258,3366.0,3365.3,35.0]
[1736958253155,0.40506768,3365.9,3365.3,35.0]
[1736958253452,0.02980968,3365.9,3365.3,35.0]
[1736958253611,0.7817,3366.0,3365.3,35.0]
[1736958254194,2.97115,3365.7,3365.3,35.0]
[1736958254420,3.75294,3365.6,3365.3,35.0]
[1736958254656,0.7817,3365.6,3365.1,0.216]
[1736958254835,0.7817,3365.6,3365.1,0.53478]
[1736958255001,0.7817,3366.4,3365.5,2.97132]
[1736958255200,0.7817,3366.4,3365.5,37.97132]
[1736958255403,2.97108,3365.8,3365.1,0.216]
[1736958255757,0.7817,3365.7,3365.1,0.216]
[1736958255908,0.7817,3365.7,3365.2,35.0]
[1736958256342,2.97134,3365.5,3365.2,35.0]
[1736958256732,0.7817,3365.7,3364.9,0.216]
[1736958257243,0.7817,3365.7,3364.9,35.216]
[1736958258312,0.7817,3365.7,3365.0,2.97174]
[1736958258610,0.7817,3365.7,3364.9,0.216]
[1736958258845,0.7817,3365.7,3364.9,3.18781]
[1736958259010,0.7817,3365.7,3365.1,35.0]
[1736958260908,0.02980968,3365.6,3365.1,35.0]
[1736958261105,3.75343,3365.1,3364.8,0.216]
[1736958261544,2.97178,3365.0,3364.8,0.216]
[1736958261940,2.97185,3364.9,3364.8,0.216]
[1736958262615,0.34383295,3364.9,3364.3,35.0]
[1736958263010,0.7817,3364.7,3364.2,0.81294212]
[1736958263746,3.75376,3364.7,3364.2,0.216]
[1736958264059,2.9723,3364.4,3363.8,0.216]
[1736958264761,0.02980968,3364.3,3363.8,0.216]
[1736958265256,0.8183,3364.2,3363.8,0.216]
[1736958265554,3.79079,3364.2,3363.6,35.0]
[1736958265759,3.79079,3364.2,3363.8,0.216]
[1736958266069,1.197379,3364.2,3363.5,0.46597564]
[1736958266275,2.97288,3363.8,3363.3,0.216]
[1736958266576,2.97263,3364.1,3363.4,35.0]
[1736958266734,0.8183,3363.6,3363.3,0.216]
[1736958266935,0.84810968,3363.6,3363.1,2.14]
[1736958267153,3.82111968,3363.6,3363.1,2.14]
[1736958267364,0.84810968,3363.6,3363.2,0.216]
[1736958267543,2.97311,3363.5,3363.1,0.216]
[1736958267751,0.379141,3363.5,3362.9,0.46604091]
[1736958267931,0.8183,3363.3,3362.9,0.216]
[1736958268129,2.97364,3362.9,3362.0,0.46609636]
[1736958268330,0.8183,3362.7,3362.6,0.216]
[1736958268530,3.7921,3362.7,3362.6,0.216]
[1736958268759,3.35301,3362.7,3360.9,0.8018]
[1736958268969,2.97423,3362.3,3361.8,0.213]
[1736958269280,3.82234968,3362.2,3361.8,0.213]
[1736958269476,3.82234968,3362.2,3361.6,0.213]
[1736958269827,3.82234968,3362.2,3361.3,0.46621796]
[1736958270067,3.82234968,3362.2,3361.3,0.213]
[1736958270867,3.82234968,3362.2,3361.2,0.213]
[1736958272530,6.82234968,3362.2,3361.2,0.213]
[1736958272865,8.16580051,3362.2,3361.2,0.213]
[1736958273025,8.16580051,3362.2,3361.0,2.97526]
[1736958273225,8.16580051,3362.2,3361.5,0.213]
[1736958273929,6.79254,3362.2,3361.5,0.213]
[1736958274443,0.8183,3362.2,3361.5,0.213]
[1736958275035,3.79254,3362.2,3361.5,0.213]
[1736958276455,3.82234968,3362.2,3361.5,0.213]
[1736958276947,7.37234968,3362.2,3360.9,1.25438673]
[1736958277152,8.37717897,3362.2,3361.5,0.213]
[1736958277353,11.8480213,3362.2,3361.5,0.213]
[1736958277553,11.2980213,3362.2,3361.5,0.213]
[1736958278284,11.8480213,3362.2,3361.5,0.213]
[1736958278630,11.8480213,3362.2,3360.5,0.788]
[1736958278631,11.8480213,3362.2,3362.1,1e-05]
[1736958280180,12.4497503,3362.2,3362.1,1e-05]
[1736958283997,4.3176,3362.1,3360.7,0.213]
[1736958284140,3.47084233,3361.4,3360.7,0.213]
[1736958284343,3.00484968,3361.3,3360.7,0.213]
[1736958284561,2.97504,3361.3,3360.7,0.213]
[1736958284762,3.47084233,3361.4,3360.3,0.46638734]
[1736958284961,4.31457627,3362.1,3360.4,0.213]
[1736958284962,3.0,3361.7,3360.4,0.213]
[1736958285149,2.97477,3361.6,3360.6,2.97563]
[1736958285567,2.97477,3361.6,3360.7,0.213]
[1736958286093,3.47084233,3361.4,3360.7,0.213]
[1736958286393,0.02980968,3361.3,3360.7,0.213]
[1736958286595,2.97522,3361.1,3360.7,0.213]
[1736958286762,3.00502968,3361.1,3360.7,0.213]
[1736958286964,0.3500652,3361.2,3360.7,0.213]
[1736958287147,3.00504968,3361.1,3360.7,0.213]
[1736958287346,3.00504968,3361.1,3360.3,0.46638734]
[1736958287566,3.9876454,3361.1,3360.4,0.213]
[1736958288197,3.47084233,3361.4,3360.4,0.213]
[1736958288401,0.02980968,3361.3,3360.4,0.213]
[1736958288699,2.97516,3361.2,3360.4,0.213]
[1736958289049,0.02980968,3361.1,3360.4,0.213]
[1736958289253,3.00496968,3361.2,3360.4,0.213]
[1736958289663,0.02980968,3361.2,3360.4,0.213]
[1736958289851,2.97523,3361.1,3360.4,0.213]
[1736958290050,3.0,3361.3,3360.4,0.213]
[1736958290253,2.97469,3361.7,3360.4,3.18876]
[1736958290500,0.7676,3361.8,3360.8,2.97544]
[1736958290663,4.11773208,3362.1,3360.5,0.8105]
[1736958290664,0.05469827,3362.1,3360.9,0.0297529]
[1736958290862,0.8181,3362.6,3361.8,0.8105]
[1736958291080,1.54437723,3362.6,3361.9,0.213]
[1736958291281,0.02980968,3362.8,3361.9,0.213]
[1736958291595,2.97373,3362.8,3361.9,3.18749]
[1736958291793,3.47084233,3362.9,3362.0,0.213]
[1736958292001,2.97426,3362.2,3361.8,0.8105]
[1736958292205,0.02980968,3362.1,3361.9,0.213]
[1736958292354,3.00394968,3362.4,3361.9,0.213]
[1736958292557,2.97414,3362.4,3361.9,0.213]
[1736958293241,4.20010153,3362.5,3361.9,0.213]
[1736958293242,0.7292592,3362.5,3361.9,0.213]
[1736958293451,0.8181,3363.1,3362.0,0.8105]
[1736958293659,0.8181,3363.1,3362.0,3.7849]
[1736958293660,2.97354,3363.0,3362.0,3.7849]
[1736958293862,2.97386,3362.7,3362.0,0.8105]
[1736958294011,2.97392,3362.6,3362.0,0.8105]
[1736958294558,0.02980968,3362.5,3362.0,0.8105]
[1736958294721,0.02980968,3362.5,3361.9,0.213]
[1736958295063,0.30037297,3362.4,3361.9,0.213]
[1736958295372,3.47084233,3362.9,3361.9,0.213]
[1736958295534,3.50065201,3362.9,3361.9,0.213]
[1736958295738,3.47084233,3362.9,3361.9,3.18748]
[1736958296039,2.97384,3362.7,3361.9,0.213]
[1736958296234,6.44455233,3362.9,3361.9,0.213]
[1736958296470,3.47084233,3362.9,3361.9,0.213]
[1736958296650,3.00352968,3362.8,3361.9,0.213]
[1736958297178,2.97382,3362.7,3361.9,0.213]
[1736958297472,1.3079171,3363.1,3361.9,0.213]
[1736958297653,2.97361,3363.0,3361.9,3.18749]
[1736958297860,2.97361,3363.0,3361.9,0.213]
[1736958298187,2.97361,3363.0,3362.1,2.97432]
[1736958298348,1.42732867,3363.4,3362.1,0.318732]
[1736958298671,3.0,3363.2,3362.3,2.97413]
[1736958298879,2.9733,3363.3,3362.3,2.97413]
[1736958300172,2.97366,3362.9,3362.0,0.8105]
[1736958300374,0.02980968,3363.2,3362.0,0.8105]
[1736958300375,2.97388,3362.7,3362.0,0.8105]
[1736958301074,2.97365,3362.9,3362.0,0.8105]
[1736958301371,2.97353,3363.1,3362.1,2.97427]
[1736958301725,2.97353,3363.1,3362.0,1.210306]
[1736958301726,0.02980968,3363.1,3362.0,1.210306]
[1736958301921,3.47084233,3362.9,3362.0,0.8105]
[1736958302128,6.47084233,3363.4,3362.1,0.209]
[1736958302354,0.02980968,3363.3,3362.1,3.1833]
[1736958302525,2.97346,3363.1,3362.1,3.1833]
[1736958302746,2.97346,3363.1,3362.0,0.8105]
[1736958302747,2.97373,3362.8,3362.0,0.8105]
[1736958302945,2.97373,3362.8,3362.2,0.209]
[1736958304033,3.47084233,3362.6,3362.0,0.8105]
[1736958304280,2.97423,3362.3,3361.6,0.7956]
[1736958304489,0.55,3362.8,3361.6,0.7956]
[1736958304635,1.66727801,3362.8,3361.7,3.18364]
[1736958304979,2.97387,3362.7,3361.7,3.18364]
[1736958305387,2.97392,3362.6,3361.6,0.7956]
[1736958305683,4.29934233,3363.4,3361.9,0.7956]
[1736958305883,4.29934233,3363.4,3362.0,0.209]
[1736958306070,2.9734,3363.2,3362.1,2.97429]
[1736958306275,2.97258,3364.1,3362.3,0.7956]
[1736958306276,2.97303,3363.6,3362.3,0.7956]
[1736958306590,2.97303,3363.6,3362.6,2.97386]
[1736958306931,2.97303,3363.6,3362.3,0.7956]
[1736958306932,2.97352,3363.1,3362.3,0.7956]
[1736958307129,0.02980968,3363.0,3362.4,0.209]
[1736958307330,2.97355,3363.0,3362.4,0.209]
[1736958307578,3.27388597,3363.0,3362.4,0.209]
[1736958307787,0.02980968,3362.9,3362.4,0.209]
[1736958307994,0.8285,3363.8,3362.4,0.209]
[1736958307995,4.29934233,3363.8,3362.4,0.209]
[1736958308296,2.97293,3363.7,3362.4,0.209]
[1736958308591,2.97293,3363.7,3362.7,2.97375]
[1736958308742,2.97286,3363.8,3362.8,2.9737]
[1736958308943,3.00275968,3363.7,3362.6,2.97381]
[1736958309292,2.9729,3363.8,3362.7,2.9738]
[1736958309494,0.02980968,3363.7,3362.5,0.7956]
[1736958309788,2.97323,3363.4,3362.5,3.76957]
[1736958310285,2.97303,3363.6,3362.6,2.97386]
[1736958310446,2.97303,3363.6,3362.5,0.7956]
[1736958310652,2.8645,3364.8,3362.4,0.209]
[1736958310653,6.44304233,3364.6,3362.7,0.7956]
[1736958310855,6.44304233,3364.6,3363.5,2.97308]
[1736958310856,3.80072,3364.5,3363.5,2.97308]
[1736958311064,3.80072,3364.5,3363.7,0.7956]
[1736958311249,2.97252,3364.2,3363.7,0.7956]
[1736958311455,0.02980968,3364.4,3363.7,0.7956]
[1736958311737,3.00212968,3364.4,3363.7,0.7956]
[1736958311968,3.6196172,3364.4,3363.7,0.7956]
[1736958312175,3.6196172,3364.4,3363.6,0.209]
[1736958312176,0.55,3364.3,3363.6,0.209]
[1736958312380,2.97271,3364.0,3363.6,0.209]
[1736958313133,2.9734,3363.2,3363.1,0.209]
[1736958313253,3.47084233,3363.7,3363.0,0.209]
[1736958313254,0.02980968,3363.5,3363.0,0.209]
[1736958313593,3.47084233,3363.7,3363.1,0.209]
[1736958313881,4.20077656,3363.7,3363.1,0.207]
[1736958314097,0.02980968,3363.6,3363.1,0.207]
[1736958314293,7.17376656,3363.7,3363.1,0.207]
[1736958314595,3.57077896,3364.1,3363.1,0.207]
[1736958314596,2.97276,3363.9,3363.1,0.207]
[1736958315100,3.47084233,3364.1,3363.1,0.207]
[1736958315240,3.47084233,3364.1,3363.2,3.76894]
[1736958315642,0.02980968,3364.0,3363.2,3.76894]
[1736958315888,0.02980968,3364.0,3363.1,0.207]
[1736958315889,6.44376233,3363.7,3363.1,0.209]
[1736958316089,0.02980968,3363.6,3363.1,0.209]
[1736958316246,2.97317,3363.5,3363.1,0.209]
[1736958316763,6.44382233,3363.7,3363.1,0.209]
[1736958316960,0.75704191,3363.6,3363.1,0.209]
[1736958317440,0.72723223,3363.6,3363.1,0.209]
[1736958317638,2.9726,3364.1,3363.2,0.7956]
[1736958317890,6.44326233,3364.3,3363.3,2.97325]
[1736958318200,3.47084233,3364.3,3363.3,2.97327]
[1736958318491,2.97254,3364.2,3363.3,0.7956]
[1736958319075,3.47084233,3364.3,3363.3,0.7956]
[1736958319274,0.02980968,3364.1,3363.3,0.7956]
[1736958319578,3.47084233,3364.7,3363.8,2.97282]
[1736958319786,3.47084233,3364.7,3363.4,2.97318]
[1736958319787,3.47084233,3365.1,3364.0,0.7669]
[1736958319982,2.9709,3366.0,3363.3,3.0]
[1736958319983,3.47084233,3365.5,3364.5,0.7669]
[1736958320309,6.44251233,3365.1,3364.6,0.209]
[1736958320647,2.9718,3365.0,3364.7,0.209]
[1736958321261,3.47084233,3365.1,3364.7,0.209]
[1736958321462,6.39624423,3365.4,3364.7,0.209]
[1736958321697,2.97151,3365.3,3364.7,0.209]
[1736958321843,2.97183,3365.0,3363.6,2.97295]
[1736958322190,6.44290233,3364.7,3363.8,0.7669]
[1736958322497,3.47084233,3364.7,3363.8,0.7669]
[1736958322697,2.9722,3364.6,3363.8,0.7669]
[1736958322903,0.02980968,3364.5,3363.8,0.7669]
[1736958323049,2.97241,3364.3,3363.8,0.7669]
[1736958323281,6.44325233,3364.3,3363.8,0.7669]
[1736958323682,2.97247,3364.2,3363.9,0.209]
[1736958324211,3.47084233,3364.3,3363.8,0.7669]
[1736958324412,2.97266,3364.0,3363.0,3.74042]
[1736958324593,0.297266,3363.9,3363.1,0.209]
[1736958324804,3.00264968,3363.8,3363.1,0.209]
[1736958325023,3.00264968,3363.8,3363.0,0.7669]
[1736958325024,6.44393233,3363.5,3363.0,0.7669]
[1736958325230,2.97321,3363.4,3363.0,0.9759]
[1736958325390,3.47084233,3363.5,3363.0,0.9759]
[1736958325391,3.47084233,3363.5,3363.0,0.209]
[1736958325594,3.47084233,3363.9,3363.0,0.209]
[1736958325910,3.47084233,3364.4,3363.5,2.97302]
[1736958326229,3.47084233,3364.8,3364.0,2.97263]
[1736958326437,3.47084233,3364.8,3364.1,0.9759]
[1736958326642,3.47084233,3365.2,3364.1,0.9759]
[1736958326788,3.47084233,3365.2,3364.3,2.97237]
[1736958327000,3.81792656,3365.2,3364.1,0.9759]
[1736958327236,3.84773624,3365.2,3364.1,0.9759]
[1736958327547,2.97188,3364.9,3364.1,0.9759]
[1736958327728,2.9721,3364.7,3364.1,0.9759]
[1736958327912,0.7767,3364.9,3364.1,0.9759]
[1736958328093,2.97197,3364.8,3364.1,0.9759]
[1736958328296,3.34981797,3364.8,3364.1,0.9759]
[1736958328508,0.37784797,3364.8,3364.1,0.9759]
[1736958328715,3.81792656,3365.2,3364.1,0.9759]
[1736958328944,6.78952656,3365.2,3364.2,2.9724]
[1736958329298,2.9717,3365.1,3364.1,0.9759]
[1736958329597,3.47084233,3365.2,3364.1,0.9759]
[1736958329801,0.7767,3365.6,3364.1,0.9759]
[1736958329802,2.97143,3365.4,3364.1,0.9759]
[1736958330002,0.72189723,3365.3,3364.1,1.370756]
[1736958330205,3.50065201,3365.2,3364.1,3.94845]
[1736958330455,2.97178,3365.0,3364.1,3.94845]
[1736958330599,2.97185,3364.9,3364.1,0.9759]
[1736958330802,2.97221,3364.5,3364.1,0.9759]
[1736958331002,3.50065201,3364.4,3363.7,0.212]
[1736958331201,0.34708423,3364.7,3363.8,0.7669]
[1736958331454,3.74841,3365.1,3363.9,0.212]
[1736958331658,3.74841,3365.1,3364.2,0.7669]
[1736958331659,2.97171,3365.1,3364.2,0.7669]
[1736958331817,0.02980968,3365.1,3364.2,0.7669]
[1736958332155,0.02980968,3365.1,3363.9,0.212]
[1736958332156,2.97223,3364.5,3363.9,0.9789]
[1736958332302,0.297223,3364.4,3364.0,0.212]
[1736958332502,3.47084233,3364.8,3364.0,0.212]
[1736958332503,6.44281233,3364.8,3364.0,0.212]
[1736958333154,3.47084233,3365.2,3364.0,0.212]
[1736958333304,2.97136,3365.5,3364.5,0.7669]
[1736958334040,2.97097,3365.9,3364.7,0.7669]
[1736958334241,2.97097,3365.9,3364.8,2.97186]
[1736958334458,3.69282123,3365.9,3364.8,3.78246]
[1736958334638,3.69282123,3365.9,3364.9,2.97178]
[1736958334840,3.69282123,3365.9,3365.0,2.97175]
[1736958335158,2.97107,3365.8,3365.1,0.21]
[1736958336376,0.02980968,3365.7,3365.1,0.21]
[1736958336677,2.97151,3365.3,3364.8,0.8106]
[1736958336839,2.97151,3365.3,3365.1,0.212]
[1736958337221,3.00116968,3365.5,3365.1,0.212]
[1736958337528,2.97145,3365.4,3365.1,0.212]
[1736958338620,6.44211233,3365.6,3365.1,0.212]
[1736958338774,4.52657372,3365.6,3365.1,0.212]
[1736958338975,3.47084233,3366.0,3365.1,0.212]
[1736958339226,2.97119,3365.7,3365.1,0.212]
[1736958339428,3.69285123,3365.9,3365.1,0.212]
[1736958340094,2.97108,3365.8,3365.1,0.212]
[1736958340793,0.02980968,3365.7,3365.1,0.212]
[1736958341324,3.47084233,3366.0,3365.1,0.212]
[1736958341477,2.97105,3365.9,3365.1,0.212]
[1736958342330,0.02980968,3365.9,3364.8,0.8106]
[1736958342552,2.97141,3365.5,3365.2,0.212]
[1736958342717,2.97113,3365.8,3365.2,0.212]
[1736958342922,0.64419723,3365.7,3365.2,0.212]
[1736958343249,2.97135,3365.5,3365.2,0.212]
[1736958343393,3.00115968,3365.5,3365.2,0.212]
[1736958343593,2.9715,3365.3,3365.2,0.212]
[1736958343946,2.9715,3365.3,3365.0,0.212]
[1736958344143,0.9443432,3365.3,3365.0,0.212]
[1736958344286,2.97142,3365.4,3365.0,0.212]
[1736958344505,0.64419723,3365.7,3365.0,0.212]
[1736958344707,2.97108,3365.8,3365.0,0.212]
[1736958344923,0.02980968,3365.7,3365.0,0.212]
[1736958345320,2.97106,3365.8,3365.0,0.212]
[1736958345536,2.9715,3365.3,3365.0,0.212]
[1736958345780,2.9718,3365.0,3364.8,0.212]
[1736958345890,2.97185,3364.9,3364.8,0.212]
[1736958346302,2.97171,3365.1,3364.8,0.212]
[1736958346509,2.97149,3365.4,3364.8,0.212]
[1736958347219,3.47084233,3366.0,3364.9,0.7603]
[1736958347427,2.97115,3365.7,3364.9,35.7603]
[1736958347591,2.97134,3365.5,3364.9,35.7603]
[1736958347787,0.02980968,3365.8,3364.9,38.73212]
[1736958347993,3.47084233,3366.0,3364.9,35.7603]
[1736958348350,2.97119,3365.7,3365.0,0.212]
[1736958348905,0.02980968,3365.7,3365.0,0.212]
[1736958349112,2.97149,3365.4,3365.0,0.212]
[1736958349506,3.50065201,3365.6,3364.9,0.212]
[1736958349716,3.0,3365.4,3364.9,0.212]
[1736958350017,2.97148,3365.4,3364.9,0.212]
[1736958350245,1.40135923,3365.9,3364.9,0.212]
[1736958350437,2.9711,3365.8,3364.9,3.18384]
[1736958350651,2.97117,3365.7,3365.0,0.7965]
[1736958350958,2.97136,3365.5,3365.0,0.212]
[1736958351159,2.97157,3365.3,3365.0,0.212]
[1736958351650,3.0,3365.5,3365.0,0.212]
[1736958352009,3.02980968,3365.5,3365.0,0.212]
[1736958352209,2.97159,3365.2,3365.0,0.212]
[1736958352606,2.97149,3365.4,3365.0,0.212]
[1736958352805,4.33105353,3365.4,3365.0,0.212]
[1736958353629,4.36086321,3365.4,3365.0,0.212]
[1736958353833,2.97161,3365.2,3365.0,0.212]
[1736958354134,2.97167,3365.1,3365.0,0.212]
[1736958354335,2.97195,3364.8,3364.6,0.7965]
[1736958354536,3.47084233,3364.7,3364.2,0.212]
[1736958354763,3.47084233,3364.7,3363.9,35.0]
[1736958354965,2.97229,3364.4,3364.0,0.212]
[1736958355276,2.97256,3364.1,3364.0,0.212]
[1736958355477,0.02980968,3364.3,3362.8,0.46584874]
[1736958355683,2.97275,3363.9,3362.9,35.212]
[1736958355841,3.0,3364.2,3362.9,35.212]
[1736958356037,3.0,3364.2,3363.2,2.97335]
[1736958356577,3.0,3364.2,3362.9,35.212]
[1736958356578,2.97215,3364.6,3363.5,2.97301]
[1736958356777,2.97215,3364.6,3363.6,2.97292]
[1736958356949,0.8206,3365.0,3363.6,0.297292]
[1736958357281,5.9718,3365.0,3364.0,2.97264]
[1736958357492,3.00172968,3364.9,3364.2,0.7965]
[1736958357638,2.97208,3364.7,3364.2,0.7965]
[1736958357983,2.97208,3364.7,3364.3,35.0]
[1736958358175,3.02980968,3365.0,3364.3,35.0]
[1736958358473,2.97226,3364.5,3363.8,1.0055]
[1736958358671,2.97256,3364.2,3363.8,1.0055]
[1736958358980,2.97258,3364.1,3363.8,1.0055]
[1736958359731,3.02980968,3364.4,3363.8,1.0055]
[1736958359931,2.9725,3364.2,3363.8,1.0055]
[1736958360342,2.97271,3364.0,3363.8,0.209]
[1736958361000,2.97274,3363.9,3363.7,0.209]
[1736958361206,2.97277,3363.9,3363.7,0.209]
[1736958361924,2.97282,3363.8,3363.7,0.209]
[1736958362068,2.97303,3363.6,3363.5,0.209]
[1736958362505,4.00406351,3364.0,3363.5,0.209]
[1736958362506,1.00160383,3364.0,3363.5,0.209]
[1736958362811,2.97275,3363.9,3363.5,0.209]
[1736958363108,3.0,3364.2,3363.5,0.209]
[1736958363700,2.97257,3364.1,3363.5,0.209]
[1736958364411,3.0,3364.2,3363.5,0.209]
[1736958364644,3.0,3364.2,3363.2,35.7965]
[1736958364645,3.47084233,3363.9,3363.2,35.7965]
[1736958364782,3.57263597,3364.3,3362.4,0.784]
[1736958364783,2.97352,3363.1,3362.4,0.784]
[1736958365115,3.47084233,3362.9,3362.5,0.209]
[1736958365421,2.97343,3363.2,3362.6,35.0]
[1736958365588,3.47084233,3363.3,3362.6,35.0]
[1736958365790,2.97311,3363.5,3362.6,35.0]
[1736958365994,2.97319,3363.4,3362.6,37.43584729]
[1736958366241,2.97319,3363.4,3362.6,35.0]
[1736958366373,2.97363,3362.9,3362.5,0.209]
[1736958366718,2.97348,3363.1,3362.5,0.209]
[1736958366868,2.97348,3363.1,3362.5,35.209]
[1736958367800,2.97348,3363.1,3362.5,35.0]
[1736958368005,2.97348,3363.1,3362.6,0.209]
[1736958368514,3.0,3363.2,3362.6,0.209]
[1736958368515,2.97357,3363.0,3362.6,0.209]
[1736958368814,2.9738,3362.7,3362.4,0.784]
[1736958368987,2.9738,3362.7,3362.5,0.209]
[1736958369438,3.47084233,3362.9,3362.2,35.0]
[1736958369576,2.97388,3362.6,3362.5,0.209]
[1736958370408,0.94444123,3363.0,3362.3,0.209]
[1736958370636,2.97339,3363.2,3362.3,0.209]
[1736958370838,1.2518452,3363.8,3362.5,2.97391]
[1736958371043,3.4048852,3363.8,3362.8,2.9737]
[1736958371191,2.97254,3364.2,3363.2,2.9733]
[1736958371515,2.97257,3364.1,3363.3,35.0]
[1736958371718,2.97257,3364.1,3363.4,0.209]
[1736958372321,0.02980968,3364.0,3363.4,35.209]
[1736958372633,2.97292,3363.7,3363.4,0.209]
[1736958373336,2.97301,3363.6,3363.4,0.209]
[1736958374388,0.7073358,3364.0,3363.4,0.209]
[1736958374724,2.97309,3363.5,3363.4,0.209]
[1736958375021,2.97296,3363.7,3363.4,0.209]
[1736958375227,2.97307,3363.6,3363.4,0.209]
[1736958375828,2.97256,3364.1,3363.4,0.209]
[1736958375829,0.7712,3365.0,3363.8,0.7775]
[1736958376031,2.97185,3364.9,3364.0,2.97264]
[1736958376328,6.44269233,3364.9,3364.1,35.0]
[1736958376627,0.72138923,3364.8,3364.1,35.0]
[1736958377405,0.72138923,3364.8,3364.1,37.97254]
[1736958377600,3.47084233,3364.9,3364.1,35.0]
[1736958377799,2.97204,3364.7,3363.8,0.7775]
[1736958378004,2.97237,3364.4,3363.9,0.209]
[1736958378200,3.47084233,3364.5,3363.9,0.209]
[1736958378393,2.97249,3364.2,3363.9,0.209]
[1736958378591,2.97257,3364.1,3363.9,0.209]
[1736958378791,2.97272,3364.0,3363.4,0.7775]
[1736958379038,2.97268,3364.0,3363.5,0.209]
[1736958379239,0.7712,3364.3,3363.5,0.209]
[1736958379542,2.97249,3364.2,3363.5,0.209]
[1736958379693,2.97249,3364.2,3363.4,0.7775]
[1736958379896,2.97249,3364.2,3363.6,0.209]
[1736958381138,2.97213,3364.6,3363.6,3.18196]
[1736958381342,2.97122,3365.7,3363.6,3.18196]
[1736958381343,0.7712,3365.1,3363.8,0.7775]
[1736958381541,2.97097,3365.9,3364.5,0.7775]
[1736958381542,0.7712,3365.6,3364.5,0.7775]
[1736958381709,0.72131023,3365.5,3364.5,0.7775]
[1736958382251,2.97148,3365.4,3364.5,0.7775]
[1736958382428,2.97153,3365.3,3364.5,0.7775]
[1736958383248,0.7712,3365.9,3364.5,0.7775]
[1736958383416,2.97098,3365.9,3364.9,2.97177]
[1736958383758,2.97135,3365.5,3365.0,0.9865]
[1736958383927,0.02980968,3365.4,3365.1,0.209]
[1736958384112,2.97135,3365.5,3365.1,0.209]
[1736958384318,2.97142,3365.4,3365.1,0.209]
[1736958384751,0.02980968,3365.3,3365.1,0.209]
[1736958384933,0.02980968,3365.3,3363.3,2.25]
[1736958385111,3.47084233,3365.7,3364.2,0.7775]
[1736958385112,3.47084233,3364.8,3364.2,0.7775]
[1736958385312,3.0,3364.7,3364.0,0.209]
[1736958385512,6.47084233,3364.7,3364.0,0.209]
[1736958386017,3.0,3364.7,3364.1,0.7775]
[1736958387171,3.0,3364.7,3364.1,0.7755]
[1736958387465,3.674315,3364.7,3364.1,0.7755]
[1736958387916,2.97195,3364.8,3364.1,0.7755]
[1736958388317,0.02980968,3365.0,3364.1,0.7755]
[1736958388524,2.97239,3364.3,3362.9,2.97361]
[1736958388754,2.97239,3364.3,3363.1,3.209]